fUSD/lending_fUSD_20240821
["ID","MTS","AMOUNT","RATE_DAILY","PERIOD"]
[335493567,1724271081798,-2900.23,0.0001863,5]
[335493568,1724271081807,-3837.38,0.0001863,5]
[335493569,1724271081817,-1312.2,0.0001863,5]
[335493570,1724271081827,-5651.96,0.0001863,5]
[335493571,1724271081837,-2385.71,0.0001863,5]
[335493572,1724271081848,-2073.03,0.0001863,5]
[335493573,1724271081858,-4428.25,0.0001863,5]
[335493574,1724271081867,-727.0,0.0001863,5]
[335493575,1724271081877,-4040.23,0.0001863,5]
[335493576,1724271081886,-536.48916656,0.0001863,5]
[335493577,1724271081896,-1758.36,0.0001863,5]
[335493578,1724271081905,-8908.85,0.0001863,5]
[335493579,1724271081914,-2776.63,0.0001863,5]
[335493580,1724271081923,-1849.24,0.0001863,5]
[335493581,1724271081933,-1976.14,0.0001863,5]
[335493582,1724271081942,-4975.15,0.0001863,5]
[335493583,1724271081951,-2893.92,0.0001863,5]
[335493584,1724271081961,-3907.53,0.0001863,5]
[335493585,1724271081970,-652.92,0.0001863,5]
[335493586,1724271081979,-8204.23,0.0001863,5]
[335493587,1724271081989,-715.41,0.0001863,5]
[335493588,1724271081998,-804.61,0.0001863,5]
[335493589,1724271082007,-3869.94,0.0001863,5]
[335493590,1724271082016,-560.54,0.0001863,5]
[335493591,1724271082025,-13097.07,0.0001863,5]
[335493592,1724271082034,-569.23,0.0001863,5]
[335493593,1724271082043,-500.0,0.0001863,5]
[335493594,1724271082052,-5246.21,0.0001863,5]
[335493595,1724271082061,-508.22,0.0001863,5]
[335493596,1724271082070,-579.28,0.0001863,5]
[335493597,1724271082079,-770.64,0.0001863,5]
[335493598,1724271082089,-540.92,0.0001863,5]
[335493599,1724271082098,-1221.8,0.0001863,5]
[335493600,1724271082107,-592.34,0.0001863,5]
[335493601,1724271082116,-516.26,0.0001863,5]
[335493602,1724271082125,-500.0,0.0001863,5]
[335493603,1724271082134,-1609.75,0.0001863,5]
[335493604,1724271082144,-1751.79,0.0001863,5]
[335493605,1724271082153,-523.39766426,0.0001863,5]
[335493606,1724271082163,-2912.27,0.0001863,5]
[335493607,1724271082171,-4271.33,0.0001863,5]
[335493608,1724271082180,-892.56,0.0001863,5]
[335493609,1724271082190,-1349.34,0.0001863,5]
[335493610,1724271082199,-1872.48,0.0001863,5]
[335493611,1724271082208,-1874.41,0.0001863,5]
[335493612,1724271082217,-843.59,0.0001863,5]
[335493613,1724271082226,-572.46,0.0001863,5]
[335493614,1724271082236,-1812.21,0.0001863,5]
[335493615,1724271082245,-1297.86,0.0001863,5]
[335493616,1724271082254,-8174.27,0.0001863,5]
[335493617,1724271082263,-778.72,0.0001863,5]
[335493618,1724271082273,-574.93,0.0001863,5]
[335493619,1724271082282,-2107.46,0.0001863,5]
[335493620,1724271082292,-768.88,0.0001863,5]
[335493621,1724271082302,-2739.14,0.0001863,5]
[335493622,1724271082311,-23349.98,0.0001863,5]
[335493623,1724271082321,-1463.51,0.0001863,5]
[335493624,1724271082330,-500.0,0.0001863,5]
[335493625,1724271082339,-1339.48,0.0001863,5]
[335493626,1724271082351,-3622.41,0.0001863,5]
[335493627,1724271082362,-1649.78,0.0001863,5]
[335493628,1724271082371,-1449.44,0.0001863,5]
[335493629,1724271082380,-11751.7,0.0001863,5]
[335493630,1724271082390,-1388.58,0.0001863,5]
[335493631,1724271082399,-905.44,0.0001863,5]
[335493632,1724271082409,-864.58,0.0001863,5]
[335493633,1724271082418,-3327.77,0.0001863,5]
[335493634,1724271082427,-1453.56,0.0001863,5]
[335493635,1724271082436,-501.06,0.0001863,5]
[335493636,1724271082445,-2863.74,0.0001863,5]
[335493637,1724271082455,-1806.38,0.0001863,2]
[335493638,1724271082463,-4240.59,0.0001863,5]
[335493639,1724271082473,-888.38,0.0001863,5]
[335493640,1724271082482,-1356.0,0.0001863,5]
[335493641,1724271082492,-956.25,0.0001863,5]
[335493642,1724271082501,-2136.97,0.0001863,5]
[335493643,1724271082511,-598.4,0.0001863,5]
[335493644,1724271082600,-16675.59,0.0001863,5]
[335493645,1724271082610,-329.57,0.0001863,2]
[335493646,1724271082619,-3894.03,0.000187,7]
[335493647,1724271082627,-496.0,0.000188,2]
[335493648,1724271082637,-496.0,0.000188,2]
[335493649,1724271082646,-1147.0,0.000188,2]
[335493650,1724271082655,-1309.4,0.000188,31]
[335493651,1724271082664,-1309.4,0.000188,31]
[335493652,1724271082673,-1309.4,0.000188,31]
[335493653,1724271082682,-1309.4,0.000188,31]
[335493654,1724271082691,-1309.4,0.000188,31]
[335493655,1724271082700,-1309.4,0.000188,31]
[335493656,1724271082709,-1309.4,0.000188,31]
[335493657,1724271082718,-1309.4,0.000188,31]
[335493658,1724271082727,-1309.4,0.000188,31]
[335493659,1724271082736,-1309.4,0.000188,31]
[335493660,1724271082745,-1309.4,0.000188,31]
[335493661,1724271082753,-1309.4,0.000188,31]
[335493662,1724271082762,-1309.4,0.000188,31]
[335493663,1724271082772,-1309.4,0.000188,31]
[335493664,1724271082780,-1309.4,0.000188,31]
[335493665,1724271082790,-1309.4,0.000188,31]
[335493666,1724271082800,-265.0,0.0001888,2]
[335493667,1724271082809,-503.16742393,0.000189,30]
[335493668,1724271082818,-4396.83,0.00018903,5]
[335493669,1724271082827,-500.0,0.00018904,5]
[335493670,1724271082836,-849.75,0.00018904,5]
[335493671,1724271082847,-500.0,0.00018904,5]
[335493672,1724271082856,-553.65,0.00018904,5]
[335493673,1724271082866,-2476.81,0.00018904,5]
[335493674,1724271082875,-500.0,0.00018904,5]
[335493675,1724271082884,-819.63,0.00018904,5]
[335493676,1724271082893,-953.0,0.00018904,5]
[335493677,1724271082902,-553.4,0.00018904,5]
[335493678,1724271082911,-2372.5,0.00018904,5]
[335493679,1724271082920,-1887.65,0.00018904,5]
[335493680,1724271082929,-500.0,0.00018904,5]
[335493681,1724271082938,-500.0,0.00018904,5]
[335493682,1724271082947,-838.39,0.00018904,5]
[335493683,1724271082956,-500.0,0.00018904,5]
[335493684,1724271082965,-942.96,0.00018904,5]
[335493685,1724271082975,-2031.17,0.00018904,5]
[335493686,1724271082983,-1086.02,0.00018904,5]
[335493687,1724271082992,-1406.4,0.00018904,5]
[335493688,1724271083001,-2109.32,0.00018904,5]
[335493689,1724271083011,-506.39,0.00018904,5]
[335493690,1724271083020,-500.0,0.00018904,5]
[335493691,1724271083028,-633.06,0.00018904,5]
[335493692,1724271083038,-2082.07,0.00018904,5]
[335493693,1724271083047,-1272.91,0.00018904,5]
[335493694,1724271083056,-877.63,0.00018904,5]
[335493695,1724271083065,-2827.83,0.00018904,5]
[335493696,1724271083074,-679.05,0.00018904,5]
[335493697,1724271083083,-2900.23,0.00018904,5]
[335493698,1724271083092,-3837.38,0.00018904,5]
[335493699,1724271083105,-1312.2,0.00018904,5]
[335493700,1724271083114,-5651.96,0.00018904,5]
[335493701,1724271083123,-2385.71,0.00018904,5]
[335493702,1724271083133,-2073.03,0.00018904,5]
[335493703,1724271083142,-4428.25,0.00018904,5]
[335493704,1724271083152,-727.0,0.00018904,5]
[335493705,1724271083161,-4040.23,0.00018904,5]
[335493706,1724271083170,-1758.36,0.00018904,5]
[335493707,1724271083179,-8908.85,0.00018904,5]
[335493708,1724271083188,-2776.63,0.00018904,5]
[335493709,1724271083197,-1849.24,0.00018904,5]
[335493710,1724271083206,-1976.14,0.00018904,5]
[335493711,1724271083215,-4975.15,0.00018904,5]
[335493712,1724271083226,-2893.92,0.00018904,5]
[335493713,1724271083237,-3907.53,0.00018904,5]
[335493714,1724271083247,-652.92,0.00018904,5]
[335493715,1724271083256,-8204.23,0.00018904,5]
[335493716,1724271083265,-715.41,0.00018904,5]
[335493717,1724271083278,-804.61,0.00018904,5]
[335493718,1724271083287,-3869.94,0.00018904,5]
[335493719,1724271083296,-560.54,0.00018904,5]
[335493720,1724271083306,-13097.07,0.00018904,5]
[335493721,1724271083315,-569.23,0.00018904,5]
[335493722,1724271083325,-500.0,0.00018904,5]
[335493723,1724271083334,-5246.21,0.00018904,5]
[335493724,1724271083344,-508.22,0.00018904,5]
[335493725,1724271083355,-579.28,0.00018904,5]
[335493726,1724271083364,-770.64,0.00018904,5]
[335493727,1724271083373,-540.92,0.00018904,5]
[335493728,1724271083382,-1221.8,0.00018904,5]
[335493729,1724271083392,-592.34,0.00018904,5]
[335493730,1724271083401,-516.26,0.00018904,5]
[335493731,1724271083410,-500.0,0.00018904,5]
[335493732,1724271083419,-1609.75,0.00018904,5]
[335493733,1724271083429,-1751.79,0.00018904,5]
[335493734,1724271083440,-2912.27,0.00018904,5]
[335493735,1724271083450,-4271.33,0.00018904,5]
[335493736,1724271083459,-892.56,0.00018904,5]
[335493737,1724271083468,-1349.34,0.00018904,5]
[335493738,1724271083478,-1872.48,0.00018904,5]
[335493739,1724271083487,-1874.41,0.00018904,5]
[335493740,1724271083497,-843.59,0.00018904,5]
[335493741,1724271083507,-572.46,0.00018904,5]
[335493742,1724271083516,-1812.21,0.00018904,5]
[335493743,1724271083525,-1297.86,0.00018904,5]
[335493744,1724271083534,-8174.27,0.00018904,5]
[335493745,1724271083543,-778.72,0.00018904,5]
[335493746,1724271083552,-574.93,0.00018904,5]
[335493747,1724271083562,-2107.46,0.00018904,5]
[335493748,1724271083571,-768.88,0.00018904,5]
[335493749,1724271083580,-2739.14,0.00018904,5]
[335493750,1724271083589,-23349.98,0.00018904,5]
[335493751,1724271083599,-1463.51,0.00018904,5]
[335493752,1724271083608,-500.0,0.00018904,5]
[335493753,1724271083616,-1339.48,0.00018904,5]
[335493754,1724271083626,-3622.41,0.00018904,5]
[335493755,1724271083635,-1649.78,0.00018904,5]
[335493756,1724271083645,-1449.44,0.00018904,5]
[335493757,1724271083655,-11751.7,0.00018904,5]
[335493758,1724271083664,-1388.58,0.00018904,5]
[335493759,1724271083673,-905.44,0.00018904,5]
[335493760,1724271083682,-864.58,0.00018904,5]
[335493761,1724271083691,-3327.77,0.00018904,5]
[335493762,1724271083700,-1453.56,0.00018904,5]
[335493763,1724271083709,-501.06,0.00018904,5]
[335493764,1724271083719,-2863.74,0.00018904,5]
[335493765,1724271083728,-1806.38,0.00018904,2]
[335493766,1724271083738,-4240.59,0.00018904,5]
[335493767,1724271083749,-888.38,0.00018904,5]
[335493768,1724271083758,-1356.0,0.00018904,5]
[335493769,1724271083767,-956.25,0.00018904,5]
[335493770,1724271083776,-2136.97,0.00018904,5]
[335493771,1724271083785,-598.4,0.00018904,5]
[335493772,1724271083794,-16675.59,0.00018904,5]
[335493773,1724271083804,-1000.0,0.00018904,2]
[335493774,1724271083813,-500.0,0.00018999,5]
[335493775,1724271083823,-20000.0,0.00019,60]
[335493776,1724271083832,-201.33835575,0.00019,2]
[335493777,1724271083841,-1242.7226692,0.00019,2]
[335493778,1724271083852,-155.0,0.00019,2]
[335493779,1724271083862,-2000.0,0.00019,2]
[335493780,1724271083871,-1003.46,0.00019135,2]
[335493781,1724271083957,-4396.83,0.00019177,5]
[335493782,1724271083966,-521.22946099,0.00019178,5]
[335493783,1724271083975,-849.75,0.00019178,5]
[335493784,1724271083985,-588.17996776,0.00019178,5]
[335493785,1724271083994,-553.65,0.00019178,5]
[335493786,1724271084004,-2476.81,0.00019178,5]
[335493787,1724271084013,-500.0,0.00019178,2]
[335493788,1724271084022,-500.0,0.00019178,5]
[335493789,1724271084031,-819.63,0.00019178,5]
[335493790,1724271084040,-953.0,0.00019178,5]
[335493791,1724271084049,-553.4,0.00019178,5]
[335493792,1724271084059,-2372.5,0.00019178,5]
[335493793,1724271084067,-1887.65,0.00019178,5]
[335493794,1724271084076,-187.40641154,0.00019178,5]
[335493795,1724271084086,-500.0,0.00019178,5]
[335493796,1724271084097,-838.39,0.00019178,5]
[335493797,1724271084106,-278.33174326,0.00019178,5]
[335493798,1724271084115,-942.96,0.00019178,5]
[335493799,1724271084125,-2031.17,0.00019178,5]
[335493800,1724271084134,-1086.02,0.00019178,5]
[335493801,1724271084143,-1406.4,0.00019178,5]
[335493802,1724271084152,-2109.32,0.00019178,5]
[335493803,1724271084161,-506.39,0.00019178,5]
[335493804,1724271084171,-500.0,0.00019178,5]
[335493805,1724271084180,-633.06,0.00019178,5]
[335493806,1724271084189,-2082.07,0.00019178,5]
[335493807,1724271084198,-1272.91,0.00019178,5]
[335493808,1724271084208,-877.63,0.00019178,5]
[335493809,1724271084217,-2827.83,0.00019178,5]
[335493810,1724271084226,-679.05,0.00019178,5]
[335493811,1724271084235,-2900.23,0.00019178,5]
[335493812,1724271084245,-3837.38,0.00019178,5]
[335493813,1724271084255,-1312.2,0.00019178,5]
[335493814,1724271084264,-5651.96,0.00019178,5]
[335493815,1724271084274,-2385.71,0.00019178,5]
[335493816,1724271084284,-2073.03,0.00019178,5]
[335493817,1724271084296,-4428.25,0.00019178,5]
[335493818,1724271084306,-727.0,0.00019178,5]
[335493819,1724271084315,-4040.23,0.00019178,5]
[335493820,1724271084325,-1758.36,0.00019178,5]
[335493821,1724271084335,-8908.85,0.00019178,5]
[335493822,1724271084344,-2776.63,0.00019178,5]
[335493823,1724271084355,-1849.24,0.00019178,5]
[335493824,1724271084365,-1976.14,0.00019178,5]
[335493825,1724271084375,-4975.15,0.00019178,5]
[335493826,1724271084385,-2893.92,0.00019178,5]
[335493827,1724271084396,-3907.53,0.00019178,5]
[335493828,1724271084406,-652.92,0.00019178,5]
[335493829,1724271084415,-8204.23,0.00019178,5]
[335493830,1724271084424,-715.41,0.00019178,5]
[335493831,1724271084434,-804.61,0.00019178,5]
[335493832,1724271084443,-3869.94,0.00019178,5]
[335493833,1724271084453,-560.54,0.00019178,5]
[335493834,1724271084462,-13097.07,0.00019178,5]
[335493835,1724271084471,-569.23,0.00019178,5]
[335493836,1724271084480,-382.92482175,0.00019178,5]
[335493837,1724271084489,-5246.21,0.00019178,5]
[335493838,1724271084498,-508.22,0.00019178,5]
[335493839,1724271084507,-579.28,0.00019178,5]
[335493840,1724271084517,-770.64,0.00019178,5]
[335493841,1724271084526,-540.92,0.00019178,5]
[335493842,1724271084535,-1221.8,0.00019178,5]
[335493843,1724271084544,-592.34,0.00019178,5]
[335493844,1724271084553,-516.26,0.00019178,5]
[335493845,1724271084567,-500.0,0.00019178,5]
[335493846,1724271084586,-1609.75,0.00019178,5]
[335493847,1724271084603,-1751.79,0.00019178,5]
[335493848,1724271084623,-2912.27,0.00019178,5]
[335493849,1724271084642,-4271.33,0.00019178,5]
[335493850,1724271084658,-892.56,0.00019178,5]
[335493851,1724271084675,-1349.34,0.00019178,5]
[335493852,1724271084688,-1872.48,0.00019178,5]
[335493853,1724271084705,-1874.41,0.00019178,5]
[335493854,1724271084724,-843.59,0.00019178,5]
[335493855,1724271084742,-572.46,0.00019178,5]
[335493856,1724271084754,-1812.21,0.00019178,5]
[335493857,1724271084771,-1297.86,0.00019178,5]
[335493858,1724271084786,-8174.27,0.00019178,5]
[335493859,1724271084802,-778.72,0.00019178,5]
[335493860,1724271084814,-574.93,0.00019178,5]
[335493861,1724271084829,-2107.46,0.00019178,5]
[335493862,1724271084843,-768.88,0.00019178,5]
[335493863,1724271084859,-2739.14,0.00019178,5]
[335493864,1724271084873,-23349.98,0.00019178,5]
[335493865,1724271084889,-1463.51,0.00019178,5]
[335493866,1724271084903,-354.27620135,0.00019178,5]
[335493867,1724271084917,-1339.48,0.00019178,5]
[335493868,1724271084932,-3622.41,0.00019178,5]
[335493869,1724271084946,-1649.78,0.00019178,5]
[335493870,1724271084962,-1449.44,0.00019178,5]
[335493871,1724271084976,-11751.7,0.00019178,5]
[335493872,1724271084992,-1388.58,0.00019178,5]
[335493873,1724271085005,-905.44,0.00019178,5]
[335493874,1724271085020,-864.58,0.00019178,5]
[335493875,1724271085035,-3327.77,0.00019178,5]
[335493876,1724271085051,-1453.56,0.00019178,5]
[335493877,1724271085065,-501.06,0.00019178,5]
[335493878,1724271085080,-2863.74,0.00019178,5]
[335493879,1724271085095,-1806.38,0.00019178,2]
[335493880,1724271085111,-4240.59,0.00019178,5]
[335493881,1724271085126,-888.38,0.00019178,5]
[335493882,1724271085140,-1356.0,0.00019178,5]
[335493883,1724271085154,-956.25,0.00019178,5]
[335493884,1724271085169,-2136.97,0.00019178,5]
[335493885,1724271085183,-598.4,0.00019178,5]
[335493886,1724271085198,-16675.59,0.00019178,5]
[335493887,1724271085213,-500.0,0.00019178,2]
[335493888,1724271085227,-151.0,0.00019178,2]
[335493889,1724271085242,-151.0,0.00019178,2]
[335493890,1724271085255,-151.0,0.00019178,2]
[335493891,1724271085270,-151.0,0.00019178,2]
[335493892,1724271085288,-151.0,0.00019178,2]
[335493893,1724271085302,-151.0,0.00019178,2]
[335493894,1724271085317,-154.53034011,0.0001918,2]
[335493895,1724271085332,-154.53034011,0.0001918,2]
[335493896,1724271085350,-154.53034011,0.0001918,2]
[335493897,1724271085365,-154.53034011,0.0001918,2]
[335493898,1724271085380,-154.53034011,0.0001918,2]
[335493899,1724271085396,-154.53034011,0.0001918,2]
[335493900,1724271085411,-154.53034011,0.0001918,2]
[335493901,1724271085426,-154.53034011,0.0001918,2]
[335493902,1724271085441,-154.53034011,0.0001918,2]
[335493903,1724271085457,-154.53034011,0.0001918,2]
[335493904,1724271085472,-154.53034011,0.0001918,2]
[335493905,1724271085487,-154.53034011,0.0001918,2]
[335493906,1724271085502,-154.53034011,0.0001918,2]
[335493907,1724271085637,-154.53034011,0.0001918,2]
[335493908,1724271085647,-154.53034011,0.0001918,2]
[335493909,1724271085657,-155.03,0.0001918,2]
[335493910,1724271085666,-304.45396475,0.0001918,2]
[335493911,1724271085675,-304.45396475,0.0001918,2]
[335493912,1724271085684,-304.45396475,0.0001918,2]
[335493913,1724271085693,-304.45396475,0.0001918,2]
[335493914,1724271085703,-304.45396475,0.0001918,2]
[335493915,1724271085713,-304.45396475,0.0001918,2]
[335493916,1724271085722,-304.45396475,0.0001918,2]
[335493917,1724271085732,-304.45396475,0.0001918,2]
[335493918,1724271085742,-304.45396475,0.0001918,2]
[335493919,1724271085751,-304.45396475,0.0001918,2]
[335493920,1724271085761,-304.45396475,0.0001918,2]
[335493921,1724271085771,-304.45396475,0.0001918,2]
[335493922,1724271085781,-304.45396475,0.0001918,2]
[335493923,1724271085790,-304.45396475,0.0001918,2]
[335493924,1724271085800,-304.45396475,0.0001918,2]
[335493925,1724271085810,-304.45396475,0.0001918,2]
[335493926,1724271085819,-304.45396475,0.0001918,2]
[335493927,1724271085829,-304.45396475,0.0001918,2]
[335493928,1724271085838,-304.45396475,0.0001918,2]
[335493929,1724271085849,-304.95,0.0001918,2]
[335493930,1724271085858,-224.65175459,0.0001918,2]
[335493931,1724271085867,-224.65175459,0.0001918,2]
[335493932,1724271085877,-224.65175459,0.0001918,2]
[335493933,1724271085887,-224.65175459,0.0001918,2]
[335493934,1724271085896,-224.65175459,0.0001918,2]
[335493935,1724271085905,-224.65175459,0.0001918,2]
[335493936,1724271085914,-224.65175459,0.0001918,2]
[335493937,1724271085923,-224.65175459,0.0001918,2]
[335493938,1724271085932,-224.65175459,0.0001918,2]
[335493939,1724271085941,-224.65175459,0.0001918,2]
[335493940,1724271085950,-224.65175459,0.0001918,2]
[335493941,1724271085959,-224.65175459,0.0001918,2]
[335493942,1724271085969,-224.65175459,0.0001918,2]
[335493943,1724271085978,-224.65175459,0.0001918,2]
[335493944,1724271085987,-224.65175459,0.0001918,2]
[335493945,1724271085996,-224.65175459,0.0001918,2]
[335493946,1724271086005,-224.65175459,0.0001918,2]
[335493947,1724271086015,-224.65175459,0.0001918,2]
[335493948,1724271086024,-224.65175459,0.0001918,2]
[335493949,1724271086033,-225.15,0.0001918,2]
[335493950,1724271086042,-304.53581181,0.0001918,2]
[335493951,1724271086052,-304.53581181,0.0001918,2]
[335493952,1724271086061,-304.53581181,0.0001918,2]
[335493953,1724271086070,-304.53581181,0.0001918,2]
[335493954,1724271086080,-304.53581181,0.0001918,2]
[335493955,1724271086089,-304.53581181,0.0001918,2]
[335493956,1724271086099,-304.53581181,0.0001918,2]
[335493957,1724271086111,-304.53581181,0.0001918,2]
[335493958,1724271086120,-304.53581181,0.0001918,2]
[335493959,1724271086129,-304.53581181,0.0001918,2]
[335493960,1724271086139,-304.53581181,0.0001918,2]
[335493961,1724271086148,-304.53581181,0.0001918,2]
[335493962,1724271086156,-304.53581181,0.0001918,2]
[335493963,1724271086166,-304.53581181,0.0001918,2]
[335493964,1724271086175,-304.53581181,0.0001918,2]
[335493965,1724271086185,-304.53581181,0.0001918,2]
[335493966,1724271086194,-304.53581181,0.0001918,2]
[335493967,1724271086203,-304.53581181,0.0001918,2]
[335493968,1724271086213,-304.53581181,0.0001918,2]
[335493969,1724271086222,-305.03,0.0001918,2]
[335493970,1724271086232,-750.0,0.000192,2]
[335493971,1724271086241,-1147.0,0.000192,2]
[335493972,1724271086251,-1000.0,0.00019212,2]
[335493973,1724271086260,-4396.83,0.00019451,5]
[335493974,1724271086269,-849.75,0.00019452,5]
[335493975,1724271086279,-553.65,0.00019452,5]
[335493976,1724271086290,-2476.81,0.00019452,5]
[335493977,1724271086299,-500.0,0.00019452,5]
[335493978,1724271086309,-819.63,0.00019452,5]
[335493979,1724271086318,-953.0,0.00019452,5]
[335493980,1724271086328,-553.4,0.00019452,5]
[335493981,1724271086337,-2372.5,0.00019452,5]
[335493982,1724271086347,-1887.65,0.00019452,5]
[335493983,1724271086358,-500.0,0.00019452,5]
[335493984,1724271086370,-838.39,0.00019452,5]
[335493985,1724271086380,-942.96,0.00019452,5]
[335493986,1724271086390,-2031.17,0.00019452,5]
[335493987,1724271086400,-1086.02,0.00019452,5]
[335493988,1724271086409,-1406.4,0.00019452,5]
[335493989,1724271086418,-2109.32,0.00019452,5]
[335493990,1724271086428,-506.39,0.00019452,5]
[335493991,1724271086437,-500.0,0.00019452,5]
[335493992,1724271086447,-633.06,0.00019452,5]
[335493993,1724271086457,-2082.07,0.00019452,5]
[335493994,1724271086467,-1272.91,0.00019452,5]
[335493995,1724271086476,-877.63,0.00019452,5]
[335493996,1724271086486,-2827.83,0.00019452,5]
[335493997,1724271086495,-679.05,0.00019452,5]
[335493998,1724271086504,-2900.23,0.00019452,5]
[335493999,1724271086514,-3837.38,0.00019452,5]
[335494000,1724271086523,-1312.2,0.00019452,5]
[335494001,1724271086533,-5651.96,0.00019452,5]
[335494002,1724271086543,-2385.71,0.00019452,5]
[335494003,1724271086553,-2073.03,0.00019452,5]
[335494004,1724271086563,-4428.25,0.00019452,5]
[335494005,1724271086573,-727.0,0.00019452,5]
[335494006,1724271086582,-4040.23,0.00019452,5]
[335494007,1724271086592,-1758.36,0.00019452,5]
[335494008,1724271086602,-8908.85,0.00019452,5]
[335494009,1724271086612,-2776.63,0.00019452,5]
[335494010,1724271086621,-1849.24,0.00019452,5]
[335494011,1724271086631,-1976.14,0.00019452,5]
[335494012,1724271086640,-4975.15,0.00019452,5]
[335494013,1724271086650,-2893.92,0.00019452,5]
[335494014,1724271086659,-3907.53,0.00019452,5]
[335494015,1724271086669,-652.92,0.00019452,5]
[335494016,1724271086679,-8204.23,0.00019452,5]
[335494017,1724271086688,-715.41,0.00019452,5]
[335494018,1724271086698,-804.61,0.00019452,5]
[335494019,1724271086708,-3869.94,0.00019452,5]
[335494020,1724271086717,-560.54,0.00019452,5]
[335494021,1724271086726,-13097.07,0.00019452,5]
[335494022,1724271086736,-569.23,0.00019452,5]
[335494023,1724271086746,-5246.21,0.00019452,5]
[335494024,1724271086755,-508.22,0.00019452,5]
[335494025,1724271086765,-579.28,0.00019452,5]
[335494026,1724271086775,-770.64,0.00019452,5]
[335494027,1724271086784,-540.92,0.00019452,5]
[335494028,1724271086795,-1221.8,0.00019452,5]
[335494029,1724271086805,-592.34,0.00019452,5]
[335494030,1724271086814,-516.26,0.00019452,5]
[335494031,1724271086823,-500.0,0.00019452,5]
[335494032,1724271086833,-1609.75,0.00019452,5]
[335494033,1724271086842,-1751.79,0.00019452,5]
[335494034,1724271086853,-2912.27,0.00019452,5]
[335494035,1724271086862,-4271.33,0.00019452,5]
[335494036,1724271086871,-892.56,0.00019452,5]
[335494037,1724271086880,-1349.34,0.00019452,5]
[335494038,1724271086889,-1872.48,0.00019452,5]
[335494039,1724271086898,-1874.41,0.00019452,5]
[335494040,1724271086907,-843.59,0.00019452,5]
[335494041,1724271086917,-572.46,0.00019452,5]
[335494042,1724271086926,-1812.21,0.00019452,5]
[335494043,1724271086936,-1297.86,0.00019452,5]
[335494044,1724271086945,-8174.27,0.00019452,5]
[335494045,1724271086955,-778.72,0.00019452,5]
[335494046,1724271086964,-574.93,0.00019452,5]
[335494047,1724271086974,-2107.46,0.00019452,5]
[335494048,1724271086983,-768.88,0.00019452,5]
[335494049,1724271086992,-2739.14,0.00019452,5]
[335494050,1724271087002,-23349.98,0.00019452,5]
[335494051,1724271087095,-1463.51,0.00019452,5]
[335494052,1724271087106,-1339.48,0.00019452,5]
[335494053,1724271087115,-3622.41,0.00019452,5]
[335494054,1724271087124,-1649.78,0.00019452,5]
[335494055,1724271087133,-1449.44,0.00019452,5]
[335494056,1724271087142,-11751.7,0.00019452,5]
[335494057,1724271087151,-1388.58,0.00019452,5]
[335494058,1724271087161,-905.44,0.00019452,5]
[335494059,1724271087170,-864.58,0.00019452,5]
[335494060,1724271087179,-3327.77,0.00019452,5]
[335494061,1724271087189,-1453.56,0.00019452,5]
[335494062,1724271087198,-501.06,0.00019452,5]
[335494063,1724271087207,-2863.74,0.00019452,5]
[335494064,1724271087217,-1806.38,0.00019452,2]
[335494065,1724271087226,-4240.59,0.00019452,5]
[335494066,1724271087236,-888.38,0.00019452,5]